Department Family,Entity,Date,Expense Type,Expense Area,Supplier Name,Transaction Number,Amount,Description
Business Unit Name,Entity,Invoice Creation Date,Subjective Description,Cost Center Level 27 Description,Supplier Name,Invoice Number,Invoice Amount,Cost Center Description
York and Scarborough Teaching Hospitals NHS Foundation Trust BU,York Teaching Hospital Facilities Management LLP BU,01-Nov-21,Work-In-Progress,LLP WIP,Fujifilm Uk Limited,9333266925,"34,422.72",LLP Cs005 Minor Business
York and Scarborough Teaching Hospitals NHS Foundation Trust BU,York and Scarborough Teaching Hospitals NHS Foundation Trust BU,01-Nov-21,Other Debtors < One Year,Debtors,Independent Clinical Services Ltd Ta Thornbury Nursing Services,5591708,"25,180.77",Consolidated Invoices
York and Scarborough Teaching Hospitals NHS Foundation Trust BU,York and Scarborough Teaching Hospitals NHS Foundation Trust BU,02-Nov-21,Other Creditors < One Year,Misc Suspense,NHS Supply Chain Co-ordination Limited,1122139352,"390,420.38",Rsc Stores Issue Control
York and Scarborough Teaching Hospitals NHS Foundation Trust BU,York and Scarborough Teaching Hospitals NHS Foundation Trust BU,02-Nov-21,Other Debtors < One Year,Debtors,Hcl Doctors Ltd,HDSI0001285,"77,730.17",Consolidated Invoices
York and Scarborough Teaching Hospitals NHS Foundation Trust BU,York Teaching Hospital Facilities Management LLP BU,02-Nov-21,Water,LLP Utilities Scarborough Hospital,Business Stream,9.10938E+15,"25,334.09",LLP Utilities Scarborough Hospital
York and Scarborough Teaching Hospitals NHS Foundation Trust BU,York Teaching Hospital Facilities Management LLP BU,02-Nov-21,Water,LLP Utilities Scarborough Hospital,Business Stream,9.10938E+15,"25,276.21",LLP Utilities Scarborough Hospital
York and Scarborough Teaching Hospitals NHS Foundation Trust BU,York and Scarborough Teaching Hospitals NHS Foundation Trust BU,03-Nov-21,Raw Materials And Consumables,Stores,Bayer Plc,824C379527,"91,245.60",Drugs
York and Scarborough Teaching Hospitals NHS Foundation Trust BU,York and Scarborough Teaching Hospitals NHS Foundation Trust BU,03-Nov-21,Raw Materials And Consumables,Stores,Bayer Plc,824C379528,"45,622.80",Drugs
York and Scarborough Teaching Hospitals NHS Foundation Trust BU,York and Scarborough Teaching Hospitals NHS Foundation Trust BU,03-Nov-21,Raw Materials And Consumables,Stores,Bayer Plc,824C379529,"91,245.60",Drugs
York and Scarborough Teaching Hospitals NHS Foundation Trust BU,York and Scarborough Teaching Hospitals NHS Foundation Trust BU,03-Nov-21,Raw Materials And Consumables,Stores,Bayer Plc,824C379532,"91,245.60",Drugs
York and Scarborough Teaching Hospitals NHS Foundation Trust BU,York and Scarborough Teaching Hospitals NHS Foundation Trust BU,03-Nov-21,Raw Materials And Consumables,Stores,Roche Products Ltd,1322213267,"30,357.12",Drugs
York and Scarborough Teaching Hospitals NHS Foundation Trust BU,York and Scarborough Teaching Hospitals NHS Foundation Trust BU,03-Nov-21,Raw Materials And Consumables,Stores,Janssen-Cilag Ltd,930796903,"40,435.20",Drugs
York and Scarborough Teaching Hospitals NHS Foundation Trust BU,York and Scarborough Teaching Hospitals NHS Foundation Trust BU,03-Nov-21,Computer Software / License Fees,SNS,Insight Direct (Uk) Ltd,2100011676-21,"79,833.60",DIS Corporate Team
York and Scarborough Teaching Hospitals NHS Foundation Trust BU,York and Scarborough Teaching Hospitals NHS Foundation Trust BU,03-Nov-21,Med Surg Eqpt Disposable,Renal Medicine,Baxter Healthcare Ltd,21275375,"35,766.61",C.A.P.D.
York and Scarborough Teaching Hospitals NHS Foundation Trust BU,York and Scarborough Teaching Hospitals NHS Foundation Trust BU,03-Nov-21,Pacemakers,Cardiology York,Biotronik U.K. Ltd,513073952,"36,000.00",Cardio/Respiratory Dept
York and Scarborough Teaching Hospitals NHS Foundation Trust BU,York and Scarborough Teaching Hospitals NHS Foundation Trust BU,03-Nov-21,Laboratory External Tests,Other Lab Medicine - York,Capita Business Services Ltd,6004088991,"177,331.74",LAMP Testing
York and Scarborough Teaching Hospitals NHS Foundation Trust BU,York and Scarborough Teaching Hospitals NHS Foundation Trust BU,03-Nov-21,Laboratory External Tests,Other Lab Medicine - York,Capita Business Services Ltd,6004089210,"50,474.14",LAMP Testing
York and Scarborough Teaching Hospitals NHS Foundation Trust BU,York and Scarborough Teaching Hospitals NHS Foundation Trust BU,03-Nov-21,Fm Computer Contracts,SNS,Explorer (UK) Limited,INV-0264,"108,000.00",DIS CPD Development Team
York and Scarborough Teaching Hospitals NHS Foundation Trust BU,York and Scarborough Teaching Hospitals NHS Foundation Trust BU,03-Nov-21,Additions - Information Technology,IT Capital Planning Department,Xma Ltd,LA34657,"37,488.00",Cs830 I.T.Pc'S
York and Scarborough Teaching Hospitals NHS Foundation Trust BU,York Teaching Hospital Facilities Management LLP BU,03-Nov-21,Med Surg Eqpt Mtce Contracts,LLP Medical Engineering - York,NHS Supply Chain - Maintenance,2122004398,"34,927.64",LLP Medical Engineering - York
York and Scarborough Teaching Hospitals NHS Foundation Trust BU,York Teaching Hospital Facilities Management LLP BU,03-Nov-21,Imaging Equipment Maintenance,LLP Care Group 4 - Cancer and Support Services (Excluding Lab Med) - Annual Maintenance Contracts,NHS Supply Chain - Maintenance,2122004478,"71,462.40",LLP Care Group 4 - Cancer and Support Services (Excluding Lab Med) - Annual Maintenance Contracts
York and Scarborough Teaching Hospitals NHS Foundation Trust BU,York Teaching Hospital Facilities Management LLP BU,03-Nov-21,Work-In-Progress,,Croyde Medical Ltd,797,"145,497.78",Medical & Surgical Equip (Replacing Existing Equip)
York and Scarborough Teaching Hospitals NHS Foundation Trust BU,York and Scarborough Teaching Hospitals NHS Foundation Trust BU,03-Nov-21,Laboratory External Tests,,University Of York,122998,"112,912.26",LAMP Testing
York and Scarborough Teaching Hospitals NHS Foundation Trust BU,York and Scarborough Teaching Hospitals NHS Foundation Trust BU,03-Nov-21,Laboratory Test Kits,,Genmark Diagnostics Uk Ltd,2021/FGB000000036,"61,200.00",Covid Testing
York and Scarborough Teaching Hospitals NHS Foundation Trust BU,York and Scarborough Teaching Hospitals NHS Foundation Trust BU,03-Nov-21,Additions - Information Technology,,Hp Inc Uk Ltd,9056727061,"36,455.23",Cs830 I.T.Pc'S
York and Scarborough Teaching Hospitals NHS Foundation Trust BU,York and Scarborough Teaching Hospitals NHS Foundation Trust BU,03-Nov-21,Additions - Information Technology,,Hp Inc Uk Ltd,9056728342,"100,807.18",Cs830 I.T.Pc'S
York and Scarborough Teaching Hospitals NHS Foundation Trust BU,York and Scarborough Teaching Hospitals NHS Foundation Trust BU,03-Nov-21,Computer Software / License Fees,,Digital Healthcare Ltd,91453731,"27,883.88",North Yorkshire Retinopathy Screening Programme
York and Scarborough Teaching Hospitals NHS Foundation Trust BU,York and Scarborough Teaching Hospitals NHS Foundation Trust BU,03-Nov-21,Contractual Clinical Services,,Regents Park Cardiovascular Solutions Ltd,GK04-01112021,"41,340.00",Cath Lab
York and Scarborough Teaching Hospitals NHS Foundation Trust BU,York and Scarborough Teaching Hospitals NHS Foundation Trust BU,03-Nov-21,Healthcare From Commercial Sector,,East Coast Orthopaedics Llp,ECOJune2021,"61,145.88",Orthopaedics Snr Med Scarb
York and Scarborough Teaching Hospitals NHS Foundation Trust BU,York Teaching Hospital Facilities Management LLP BU,03-Nov-21,Work-In-Progress,,Integrated Health Projects,21110001,"172,038.19",East Cost STP (AMM & Infrastructure)
York and Scarborough Teaching Hospitals NHS Foundation Trust BU,York Teaching Hospital Facilities Management LLP BU,03-Nov-21,Work-In-Progress,,Integrated Health Projects,21110001,"172,038.19",East Cost STP (AMM & Infrastructure)
York and Scarborough Teaching Hospitals NHS Foundation Trust BU,York and Scarborough Teaching Hospitals NHS Foundation Trust BU,03-Nov-21,Healthcare From Commercial Sector,,East Coast Orthopaedics Llp,ECOJuly2021,"38,647.24",Orthopaedics Snr Med Scarb
York and Scarborough Teaching Hospitals NHS Foundation Trust BU,York and Scarborough Teaching Hospitals NHS Foundation Trust BU,03-Nov-21,Professional Fees,,Clarity Workforce Technology Ltd,21178,"25,367.59",Hcl Management Charges
York and Scarborough Teaching Hospitals NHS Foundation Trust BU,York and Scarborough Teaching Hospitals NHS Foundation Trust BU,03-Nov-21,Professional Fees,,Clarity Workforce Technology Ltd,21178,"25,367.59",Hcl Management Charges
York and Scarborough Teaching Hospitals NHS Foundation Trust BU,York and Scarborough Teaching Hospitals NHS Foundation Trust BU,03-Nov-21,Consultant,,The Leeds Teaching Hospitals NHS Trust,1410181318,"27,333.58",Oncology Snr Med York
York and Scarborough Teaching Hospitals NHS Foundation Trust BU,York Teaching Hospital Facilities Management LLP BU,04-Nov-21,External Contracts : Laundry,,Synergy Health Managed Services Ltd,40004035,"54,458.94",LLP Laundry & Linen - Scarb
York and Scarborough Teaching Hospitals NHS Foundation Trust BU,York Teaching Hospital Facilities Management LLP BU,04-Nov-21,External Contracts : Laundry,,Synergy Health Managed Services Ltd,40004036,"71,622.70",LLP Linen Contract Sts
York and Scarborough Teaching Hospitals NHS Foundation Trust BU,York and Scarborough Teaching Hospitals NHS Foundation Trust BU,04-Nov-21,Laboratory External Tests,,Capita Business Services Ltd,6004090649,"164,717.16",LAMP Testing
York and Scarborough Teaching Hospitals NHS Foundation Trust BU,York and Scarborough Teaching Hospitals NHS Foundation Trust BU,04-Nov-21,Vat Debtor < One Year,,Sysmex U K Ltd,3049258829,"26,343.78",Dr Vat Debtor
York and Scarborough Teaching Hospitals NHS Foundation Trust BU,York and Scarborough Teaching Hospitals NHS Foundation Trust BU,04-Nov-21,Continence Products,,Paul Hartmann Ltd,71595829,"61,638.23",Continence Home Delivery
York and Scarborough Teaching Hospitals NHS Foundation Trust BU,York and Scarborough Teaching Hospitals NHS Foundation Trust BU,05-Nov-21,Raw Materials And Consumables,,Healthcare At Home Ltd,INUK-001207836,"51,650.17",Drugs
York and Scarborough Teaching Hospitals NHS Foundation Trust BU,York Teaching Hospital Facilities Management LLP BU,05-Nov-21,Vat Debtor < One Year,,Cbre Ltd,1067651,"39,000.00",LLP Dr Vat Debtor
York and Scarborough Teaching Hospitals NHS Foundation Trust BU,York and Scarborough Teaching Hospitals NHS Foundation Trust BU,05-Nov-21,Healthcare From Independent Sector,,Radiology Reporting Online,SIN008495,"77,570.72",Radiology General
York and Scarborough Teaching Hospitals NHS Foundation Trust BU,York and Scarborough Teaching Hospitals NHS Foundation Trust BU,05-Nov-21,Healthcare From Independent Sector,,Radiology Reporting Online,SIN008496,"25,395.60",Radiology General
York and Scarborough Teaching Hospitals NHS Foundation Trust BU,York Teaching Hospital Facilities Management LLP BU,08-Nov-21,Energy Management Contracts,,Vital Energi Solutions Ltd,SI-12611,"27,746.62",LLP Utilities York Hospital
York and Scarborough Teaching Hospitals NHS Foundation Trust BU,York and Scarborough Teaching Hospitals NHS Foundation Trust BU,08-Nov-21,Pacemakers,,Abbott Medical U.K. Limited,7500562532,"58,680.00",Cardio/Respiratory Dept
York and Scarborough Teaching Hospitals NHS Foundation Trust BU,York and Scarborough Teaching Hospitals NHS Foundation Trust BU,08-Nov-21,Raw Materials And Consumables,,Bayer Plc,824C380154,"45,622.80",Drugs
York and Scarborough Teaching Hospitals NHS Foundation Trust BU,York and Scarborough Teaching Hospitals NHS Foundation Trust BU,08-Nov-21,Raw Materials And Consumables,,Bayer Plc,824C380155,"45,622.80",Drugs
York and Scarborough Teaching Hospitals NHS Foundation Trust BU,York and Scarborough Teaching Hospitals NHS Foundation Trust BU,09-Nov-21,Laboratory External Tests,,The Leeds Teaching Hospitals NHS Trust,1410180730,"65,873.20",General Haematology
York and Scarborough Teaching Hospitals NHS Foundation Trust BU,York Teaching Hospital Facilities Management LLP BU,10-Nov-21,Lease Rents,,Future Agency Consulting Ltd,INV-0076,"64,800.00",LLP York Science Park 5 Innovation Close Property Charges
York and Scarborough Teaching Hospitals NHS Foundation Trust BU,York and Scarborough Teaching Hospitals NHS Foundation Trust BU,10-Nov-21,Raw Materials And Consumables,,Aah Hospital Service,OCT21YORK,"232,622.03",Drugs
York and Scarborough Teaching Hospitals NHS Foundation Trust BU,York and Scarborough Teaching Hospitals NHS Foundation Trust BU,10-Nov-21,Raw Materials And Consumables,,Aah Hospital Service,OCT21SGH,"71,750.70",Drugs
York and Scarborough Teaching Hospitals NHS Foundation Trust BU,York and Scarborough Teaching Hospitals NHS Foundation Trust BU,10-Nov-21,Other Debtors < One Year,,Hcl Doctors Ltd,HDSI0001291,"31,794.82",Consolidated Invoices
York and Scarborough Teaching Hospitals NHS Foundation Trust BU,York and Scarborough Teaching Hospitals NHS Foundation Trust BU,10-Nov-21,Raw Materials And Consumables,,Csl Behring Uk Ltd,994040900,"48,260.00",Drugs
York and Scarborough Teaching Hospitals NHS Foundation Trust BU,York Teaching Hospital Facilities Management LLP BU,11-Nov-21,Minor Works,,Mitie Waste And Environmental Services Ltd,224416,"59,272.58",LLP Clinical Waste Disposal (York)
York and Scarborough Teaching Hospitals NHS Foundation Trust BU,York Teaching Hospital Facilities Management LLP BU,11-Nov-21,Work-In-Progress,,Genmark Diagnostics Uk Ltd,2021/FGB000000010,"53,352.00",LLP Cs005 Minor Business
York and Scarborough Teaching Hospitals NHS Foundation Trust BU,York and Scarborough Teaching Hospitals NHS Foundation Trust BU,11-Nov-21,Non Healthcare Services From NHS Property Services,,NHS Property Services Ltd,00000001/H517075,"37,299.08",St Helen'S (Nelson'S Court) Site Expenses
York and Scarborough Teaching Hospitals NHS Foundation Trust BU,York and Scarborough Teaching Hospitals NHS Foundation Trust BU,12-Nov-21,Rent,,Roomzzz Limited,NHSNURSES900,"31,750.00",International Nurse R&R
York and Scarborough Teaching Hospitals NHS Foundation Trust BU,York and Scarborough Teaching Hospitals NHS Foundation Trust BU,12-Nov-21,Healthcare From NHS Trusts,,Hull University Teaching Hospitals NHS Trust,H0038722,"58,330.00",Cystic Fibrosis
York and Scarborough Teaching Hospitals NHS Foundation Trust BU,York and Scarborough Teaching Hospitals NHS Foundation Trust BU,12-Nov-21,Other Debtors < One Year,,Hcl Doctors Ltd,HDSI0001295,"57,248.14",Consolidated Invoices
York and Scarborough Teaching Hospitals NHS Foundation Trust BU,York and Scarborough Teaching Hospitals NHS Foundation Trust BU,15-Nov-21,Raw Materials And Consumables,,Roche Products Ltd,1322215136,"31,512.00",Drugs
York and Scarborough Teaching Hospitals NHS Foundation Trust BU,York and Scarborough Teaching Hospitals NHS Foundation Trust BU,15-Nov-21,Raw Materials And Consumables,,Bayer Plc,824C381186,"45,622.80",Drugs
York and Scarborough Teaching Hospitals NHS Foundation Trust BU,York and Scarborough Teaching Hospitals NHS Foundation Trust BU,15-Nov-21,Raw Materials And Consumables,,Bayer Plc,824C381394,"45,622.80",Drugs
York and Scarborough Teaching Hospitals NHS Foundation Trust BU,York and Scarborough Teaching Hospitals NHS Foundation Trust BU,15-Nov-21,Raw Materials And Consumables,,Novartis Pharmaceuticals Uk Ltd,92523269,"26,810.88",Drugs
York and Scarborough Teaching Hospitals NHS Foundation Trust BU,York and Scarborough Teaching Hospitals NHS Foundation Trust BU,15-Nov-21,Raw Materials And Consumables,,Janssen-Cilag Ltd,930800236,"26,956.80",Drugs
York and Scarborough Teaching Hospitals NHS Foundation Trust BU,York and Scarborough Teaching Hospitals NHS Foundation Trust BU,15-Nov-21,Drugs,,Lloyds Pharmacy Ltd,103912,"809,014.44",Lloyds Pharmacy
York and Scarborough Teaching Hospitals NHS Foundation Trust BU,York Teaching Hospital Facilities Management LLP BU,15-Nov-21,Work-In-Progress,,Mindray (Uk) Ltd,610074448,"35,775.84",Medical & Surgical Equip (Replacing Existing Equip)
York and Scarborough Teaching Hospitals NHS Foundation Trust BU,York and Scarborough Teaching Hospitals NHS Foundation Trust BU,15-Nov-21,FP10'S,,NHS Business Services Authority,1000070966,"50,572.00",Pharmacy-York
York and Scarborough Teaching Hospitals NHS Foundation Trust BU,York Teaching Hospital Facilities Management LLP BU,16-Nov-21,Vat Debtor < One Year,,TotalEnergies Gas & Power Ltd,250731497/21,"26,496.42",LLP Dr Vat Debtor
York and Scarborough Teaching Hospitals NHS Foundation Trust BU,York Teaching Hospital Facilities Management LLP BU,16-Nov-21,Tax And Social Security Costs < One Year,,Hm Revenue And Customs,475PS01299816OCT21,"385,549.22",LLP Inland Revenue Income Tax
York and Scarborough Teaching Hospitals NHS Foundation Trust BU,York and Scarborough Teaching Hospitals NHS Foundation Trust BU,16-Nov-21,Tax And Social Security Costs < One Year,,Hm Revenue And Customs,585PD00115336OCT21,"7,983,522.13",Inland Revenue Income Tax
York and Scarborough Teaching Hospitals NHS Foundation Trust BU,York and Scarborough Teaching Hospitals NHS Foundation Trust BU,16-Nov-21,Lease Rents,,Greenwich Leisure Limited,SI-174192,"97,418.60",Special Progamme General
York and Scarborough Teaching Hospitals NHS Foundation Trust BU,York Teaching Hospital Facilities Management LLP BU,16-Nov-21,Gas,,TotalEnergies Gas & Power Ltd,250731530/21,"116,125.10",LLP Utilities Scarborough Hospital
York and Scarborough Teaching Hospitals NHS Foundation Trust BU,York and Scarborough Teaching Hospitals NHS Foundation Trust BU,16-Nov-21,Research And Development,,Queens University Belfast,80020904,"41,846.40",Yor-C02474 Fasbat
York and Scarborough Teaching Hospitals NHS Foundation Trust BU,York and Scarborough Teaching Hospitals NHS Foundation Trust BU,16-Nov-21,Computer Software / License Fees,,Premier It Group Ltd,10176,"33,060.00",*Do Not Use* Workforce Utilisation
York and Scarborough Teaching Hospitals NHS Foundation Trust BU,York and Scarborough Teaching Hospitals NHS Foundation Trust BU,16-Nov-21,Raw Materials And Consumables,,Novartis Pharmaceuticals Uk Ltd,92505501,"26,734.04",Drugs
York and Scarborough Teaching Hospitals NHS Foundation Trust BU,York Teaching Hospital Facilities Management LLP BU,17-Nov-21,Gas,,TotalEnergies Gas & Power Ltd,250731585/21,"150,919.40",LLP Utilities York Hospital
York and Scarborough Teaching Hospitals NHS Foundation Trust BU,York Teaching Hospital Facilities Management LLP BU,17-Nov-21,Work-In-Progress,,SKW Construction Ltd,1036,"101,947.56",LLP Cs005 Minor Business
York and Scarborough Teaching Hospitals NHS Foundation Trust BU,York and Scarborough Teaching Hospitals NHS Foundation Trust BU,17-Nov-21,Raw Materials And Consumables,,Roche Products Ltd,1322215391,"27,194.40",Drugs
York and Scarborough Teaching Hospitals NHS Foundation Trust BU,York and Scarborough Teaching Hospitals NHS Foundation Trust BU,17-Nov-21,Raw Materials And Consumables,,Bayer Plc,824C382029,"91,245.60",Drugs
York and Scarborough Teaching Hospitals NHS Foundation Trust BU,York and Scarborough Teaching Hospitals NHS Foundation Trust BU,17-Nov-21,Raw Materials And Consumables,,Bayer Plc,824C382030,"91,245.60",Drugs
York and Scarborough Teaching Hospitals NHS Foundation Trust BU,York and Scarborough Teaching Hospitals NHS Foundation Trust BU,17-Nov-21,Raw Materials And Consumables,,Bayer Plc,824C382031,"91,245.60",Drugs
York and Scarborough Teaching Hospitals NHS Foundation Trust BU,York and Scarborough Teaching Hospitals NHS Foundation Trust BU,17-Nov-21,Amounts Owed To JV And Associates > One Year,,York Teaching Hospitals Facilities Management LLP,2020001435,"7,339,169.07",Cr More Than One Year
York and Scarborough Teaching Hospitals NHS Foundation Trust BU,York Teaching Hospital Facilities Management LLP BU,18-Nov-21,Work-In-Progress,,Kier Construction - North and Scotland,10272927,"657,588.23",York ED Major Scheme
York and Scarborough Teaching Hospitals NHS Foundation Trust BU,York and Scarborough Teaching Hospitals NHS Foundation Trust BU,18-Nov-21,Raw Materials And Consumables,,Bayer Plc,824C383292,"45,622.80",Drugs
York and Scarborough Teaching Hospitals NHS Foundation Trust BU,York Teaching Hospital Facilities Management LLP BU,18-Nov-21,Lease Rents,,York and Scarborough Teaching Hospitals NHS Foundation Trust,1010083173,"1,872,332.40",LLP Facilities Management Team
York and Scarborough Teaching Hospitals NHS Foundation Trust BU,York Teaching Hospital Facilities Management LLP BU,18-Nov-21,Contract : Other External,,York and Scarborough Teaching Hospitals NHS Foundation Trust,1010083174,"50,000.40",LLP Facilities Management Team
York and Scarborough Teaching Hospitals NHS Foundation Trust BU,York Teaching Hospital Facilities Management LLP BU,18-Nov-21,Vat Debtor < One Year,,NHS Supply Chain - Maintenance,2122004874,"27,654.91",LLP Dr Vat Debtor
York and Scarborough Teaching Hospitals NHS Foundation Trust BU,York Teaching Hospital Facilities Management LLP BU,18-Nov-21,Med Surg Eqpt Mtce Contracts,,NHS Supply Chain - Maintenance,2122004892,"181,510.09",LLP Medical Engineering - Sgh
York and Scarborough Teaching Hospitals NHS Foundation Trust BU,York Teaching Hospital Facilities Management LLP BU,18-Nov-21,Med Surg Eqpt General,,Proact Medical Ltd,447813,"27,055.21",LLP Medical Engineering - York
York and Scarborough Teaching Hospitals NHS Foundation Trust BU,York Teaching Hospital Facilities Management LLP BU,18-Nov-21,Building And Engineering Equipment Maintenance,,Woodlands Power,B46070,"31,513.68",LLP Non Recurrent Plant Repairs
York and Scarborough Teaching Hospitals NHS Foundation Trust BU,York and Scarborough Teaching Hospitals NHS Foundation Trust BU,18-Nov-21,Trust Scale (Senior Manager),,NHS North Yorkshire CCG,7033900340,"38,073.12",Chief Executive'S Office
York and Scarborough Teaching Hospitals NHS Foundation Trust BU,York and Scarborough Teaching Hospitals NHS Foundation Trust BU,19-Nov-21,Raw Materials And Consumables,,Alloga Uk Ltd,SIN103324435,"38,880.00",Drugs
York and Scarborough Teaching Hospitals NHS Foundation Trust BU,York Teaching Hospital Facilities Management LLP BU,22-Nov-21,Lease Rents,,Cbre Ltd,1083797,"39,000.00",LLP Transport & Medical Records Property Charges
York and Scarborough Teaching Hospitals NHS Foundation Trust BU,York Teaching Hospital Facilities Management LLP BU,22-Nov-21,Work-In-Progress,,Portakabin Ltd,915072464,"437,787.97",ICU Expansion York
York and Scarborough Teaching Hospitals NHS Foundation Trust BU,York Teaching Hospital Facilities Management LLP BU,22-Nov-21,Work-In-Progress,,Portakabin Ltd,915072464,"437,787.97",ICU Expansion York
York and Scarborough Teaching Hospitals NHS Foundation Trust BU,York and Scarborough Teaching Hospitals NHS Foundation Trust BU,22-Nov-21,Other Creditors < One Year,,NHS Supply Chain Co-ordination Limited,1122144907,"361,526.10",Rsc Stores Issue Control
York and Scarborough Teaching Hospitals NHS Foundation Trust BU,York and Scarborough Teaching Hospitals NHS Foundation Trust BU,22-Nov-21,Other Creditors < One Year,,NHS Supply Chain Co-ordination Limited,1122144907,"361,526.10",Rsc Stores Issue Control
York and Scarborough Teaching Hospitals NHS Foundation Trust BU,York and Scarborough Teaching Hospitals NHS Foundation Trust BU,22-Nov-21,Other Creditors < One Year,,NHS Supply Chain Co-ordination Limited,1122151174,"290,161.85",Rsc Stores Issue Control
York and Scarborough Teaching Hospitals NHS Foundation Trust BU,York and Scarborough Teaching Hospitals NHS Foundation Trust BU,22-Nov-21,Other Creditors < One Year,,NHS Supply Chain Co-ordination Limited,1122153575,"329,665.85",Rsc Stores Issue Control
York and Scarborough Teaching Hospitals NHS Foundation Trust BU,York and Scarborough Teaching Hospitals NHS Foundation Trust BU,23-Nov-21,Other Creditors < One Year,,NHS Supply Chain Co-ordination Limited,1122059123,"422,744.84",Rsc Stores Issue Control
York and Scarborough Teaching Hospitals NHS Foundation Trust BU,York and Scarborough Teaching Hospitals NHS Foundation Trust BU,23-Nov-21,Other Debtors < One Year,,Hcl Doctors Ltd,HDSI0001312,"48,692.51",Consolidated Invoices
York and Scarborough Teaching Hospitals NHS Foundation Trust BU,York and Scarborough Teaching Hospitals NHS Foundation Trust BU,23-Nov-21,Raw Materials And Consumables,,Bayer Plc,824C383736,"45,622.80",Drugs
York and Scarborough Teaching Hospitals NHS Foundation Trust BU,York and Scarborough Teaching Hospitals NHS Foundation Trust BU,23-Nov-21,Laboratory External Tests,,University Of York,123220,"131,801.25",LAMP Testing
York and Scarborough Teaching Hospitals NHS Foundation Trust BU,York Teaching Hospital Facilities Management LLP BU,24-Nov-21,Work-In-Progress,,H Pickup Mechanical & Electrical Services Ltd,INV-15380,"141,600.00",SGH Helipad
York and Scarborough Teaching Hospitals NHS Foundation Trust BU,York and Scarborough Teaching Hospitals NHS Foundation Trust BU,24-Nov-21,Patients Appliances : Purchase,,Taycare Medical Ltd,20907,"77,401.45",Ahp Orthotics - York
York and Scarborough Teaching Hospitals NHS Foundation Trust BU,York and Scarborough Teaching Hospitals NHS Foundation Trust BU,24-Nov-21,B6 Podiatrist,,Harrogate And District NHS Foundation Trust,2510042081,"123,367.77",Diabetes Snr Medical Staff
York and Scarborough Teaching Hospitals NHS Foundation Trust BU,York and Scarborough Teaching Hospitals NHS Foundation Trust BU,24-Nov-21,B6 Podiatrist,,Harrogate And District NHS Foundation Trust,2510042083,"62,395.86",Diabetes Snr Medical Staff
York and Scarborough Teaching Hospitals NHS Foundation Trust BU,York and Scarborough Teaching Hospitals NHS Foundation Trust BU,25-Nov-21,Raw Materials And Consumables,,Roche Products Ltd,1322216162,"26,050.84",Drugs
York and Scarborough Teaching Hospitals NHS Foundation Trust BU,York and Scarborough Teaching Hospitals NHS Foundation Trust BU,25-Nov-21,Raw Materials And Consumables,,Janssen-Cilag Ltd,930801582,"26,956.80",Drugs
York and Scarborough Teaching Hospitals NHS Foundation Trust BU,York and Scarborough Teaching Hospitals NHS Foundation Trust BU,25-Nov-21,Healthcare From Commercial Sector,,Preventx Ltd,PY738609A,"41,994.75",Non-Pay Coyc
York and Scarborough Teaching Hospitals NHS Foundation Trust BU,York and Scarborough Teaching Hospitals NHS Foundation Trust BU,25-Nov-21,Data Lines,,Nynet Ltd,PUB1317,"42,041.00",Telecommunications
York and Scarborough Teaching Hospitals NHS Foundation Trust BU,York and Scarborough Teaching Hospitals NHS Foundation Trust BU,25-Nov-21,Data Lines,,Nynet Ltd,PUB1349,"42,041.00",Telecommunications
York and Scarborough Teaching Hospitals NHS Foundation Trust BU,York and Scarborough Teaching Hospitals NHS Foundation Trust BU,26-Nov-21,Raw Materials And Consumables,,Qualasept Ltd,SQS0112106,"28,515.12",Drugs
York and Scarborough Teaching Hospitals NHS Foundation Trust BU,York Teaching Hospital Facilities Management LLP BU,26-Nov-21,Work-In-Progress,,Power Control Ltd,PF1664,"54,588.90",LLP Es611 Electrical Upgrades - Scarborough
York and Scarborough Teaching Hospitals NHS Foundation Trust BU,York and Scarborough Teaching Hospitals NHS Foundation Trust BU,26-Nov-21,Other Debtors < One Year,,Hcl Doctors Ltd,HDSI0001317,"74,986.18",Consolidated Invoices
York and Scarborough Teaching Hospitals NHS Foundation Trust BU,York and Scarborough Teaching Hospitals NHS Foundation Trust BU,26-Nov-21,Healthcare From NHS Trusts,,Hull University Teaching Hospitals NHS Trust,H0038928,"35,640.02",Hospital Midwifery York
York and Scarborough Teaching Hospitals NHS Foundation Trust BU,York and Scarborough Teaching Hospitals NHS Foundation Trust BU,26-Nov-21,Other Debtors < One Year,,Independent Clinical Services Ltd Ta Thornbury Nursing Services,5608504,"29,350.62",Consolidated Invoices
York and Scarborough Teaching Hospitals NHS Foundation Trust BU,York and Scarborough Teaching Hospitals NHS Foundation Trust BU,29-Nov-21,Raw Materials And Consumables,,Roche Products Ltd,1322217353,"30,357.12",Drugs
York and Scarborough Teaching Hospitals NHS Foundation Trust BU,York and Scarborough Teaching Hospitals NHS Foundation Trust BU,29-Nov-21,Raw Materials And Consumables,,Janssen-Cilag Ltd,930803490,"26,956.80",Drugs
